[Event "Titled Tuesday Blitz March 15 Early 2022"]
[White "Kevlishvili, Robby"]
[Black "Bortnyk, Olexandr"]
[WhiteFideId "1040634"]
[BlackFideId "14120828"]
[WhiteElo "2584"]
[BlackElo "2723"]
[Result "0-1"]
[Round "09"]
[TimeControl "180+1"]
[Date "2022.03.15"]
[WhiteClock "0:00:17"]
[BlackClock "0:00:28"]

1. e4 {[%clk 0:03:00]}  d6 {[%clk 0:02:57]} 2. d4 {[%clk 0:02:59]}  Nf6 {[%clk 0:02:57]} 3. Nc3 {[%clk 0:02:59]}  Nbd7 {[%clk 0:02:57]} 4. Nf3 {[%clk 0:02:59]}  e5 {[%clk 0:02:58]} 5. Bc4 {[%clk 0:03:00]}  Be7 {[%clk 0:02:58]} 6. a4 {[%clk 0:03:00]}  c6 {[%clk 0:02:58]} 7. O-O {[%clk 0:03:00]}  h6 {[%clk 0:02:59]} 8. Re1 {[%clk 0:03:00]}  Qc7 {[%clk 0:03:00]} 9. h3 {[%clk 0:03:00]}  g5 {[%clk 0:03:00]} 10. b3 {[%clk 0:02:57]}  Nf8 {[%clk 0:03:00]} 11. Ba3 {[%clk 0:02:56]}  Ng6 {[%clk 0:02:59]} 12. Bf1 {[%clk 0:02:49]}  g4 {[%clk 0:02:55]} 13. dxe5 {[%clk 0:02:39]}  dxe5 {[%clk 0:02:41]} 14. Bxe7 {[%clk 0:02:38]}  Qxe7 {[%clk 0:02:41]} 15. hxg4 {[%clk 0:02:31]}  Bxg4 {[%clk 0:02:42]} 16. Qd3 {[%clk 0:02:31]}  Nf4 {[%clk 0:02:33]} 17. Qe3 {[%clk 0:02:31]}  Rg8 {[%clk 0:02:34]} 18. Nh4 {[%clk 0:02:26]}  N6h5 {[%clk 0:01:06]} 19. Nf5 {[%clk 0:02:18]}  Qg5 {[%clk 0:00:28]} 20. g3 {[%clk 0:01:51]}  Bxf5 {[%clk 0:00:28]} 21. exf5 {[%clk 0:01:50]}  Nxg3 {[%clk 0:00:29]} 22. fxg3 {[%clk 0:00:58]}  Qxg3+ {[%clk 0:00:30]} 23. Qxg3 {[%clk 0:00:56]}  Rxg3+ {[%clk 0:00:31]} 24. Kf2 {[%clk 0:00:55]}  Rxc3 {[%clk 0:00:31]} 25. Rxe5+ {[%clk 0:00:56]}  Kf8 {[%clk 0:00:32]} 26. Bc4 {[%clk 0:00:52]}  Rd8 {[%clk 0:00:29]} 27. Rh1 {[%clk 0:00:22]}  Rd2+ {[%clk 0:00:28]} 28. Ke1 {[%clk 0:00:22]}  Rcxc2 {[%clk 0:00:26]} 29. Rxh6 {[%clk 0:00:21]}  Ng2+ {[%clk 0:00:26]} 30. Kf1 {[%clk 0:00:18]}  Rc1+ {[%clk 0:00:27]} 31. Re1 {[%clk 0:00:17]}  Rxe1# {[%clk 0:00:28]} 0-1


[Site "https://www.chess.com"]

[Event "Titled Tuesday Blitz March 15 Early 2022"]
[White "Lazavik, Denis"]
[Black "Postny, Evgeny"]
[WhiteFideId "13515110"]
[BlackFideId "2804344"]
[WhiteElo "2437"]
[BlackElo "2483"]
[Result "1/2-1/2"]
[Round "09"]
[TimeControl "180+1"]
[Date "2022.03.15"]
[WhiteClock "0:00:06"]
[BlackClock "0:00:10"]

1. d4 {[%clk 0:02:56]}  Nf6 {[%clk 0:02:43]} 2. c4 {[%clk 0:02:56]}  e6 {[%clk 0:02:43]} 3. g3 {[%clk 0:02:56]}  Bb4+ {[%clk 0:02:42]} 4. Bd2 {[%clk 0:02:55]}  Bxd2+ {[%clk 0:02:42]} 5. Qxd2 {[%clk 0:02:52]}  d5 {[%clk 0:02:42]} 6. Nf3 {[%clk 0:02:50]}  O-O {[%clk 0:02:42]} 7. Bg2 {[%clk 0:02:48]}  c6 {[%clk 0:02:42]} 8. Qc2 {[%clk 0:02:44]}  b6 {[%clk 0:02:41]} 9. O-O {[%clk 0:02:44]}  Bb7 {[%clk 0:02:40]} 10. Nbd2 {[%clk 0:02:37]}  Nbd7 {[%clk 0:02:40]} 11. Rac1 {[%clk 0:02:35]}  Rc8 {[%clk 0:02:39]} 12. Rfd1 {[%clk 0:02:27]}  c5 {[%clk 0:02:37]} 13. Qa4 {[%clk 0:01:52]}  a6 {[%clk 0:02:17]} 14. Qa3 {[%clk 0:01:49]}  h6 {[%clk 0:01:55]} 15. dxc5 {[%clk 0:01:26]}  Nxc5 {[%clk 0:01:52]} 16. b4 {[%clk 0:01:15]}  Ncd7 {[%clk 0:01:40]} 17. cxd5 {[%clk 0:01:08]}  Nxd5 {[%clk 0:01:31]} 18. Rxc8 {[%clk 0:01:04]}  Qxc8 {[%clk 0:01:28]} 19. Rc1 {[%clk 0:01:04]}  Qa8 {[%clk 0:01:19]} 20. Nc4 {[%clk 0:00:58]}  N5f6 {[%clk 0:01:03]} 21. Qe3 {[%clk 0:00:38]}  Rc8 {[%clk 0:00:58]} 22. Nd6 {[%clk 0:00:27]}  Rxc1+ {[%clk 0:00:55]} 23. Qxc1 {[%clk 0:00:28]}  Bd5 {[%clk 0:00:53]} 24. Qc7 {[%clk 0:00:27]}  a5 {[%clk 0:00:29]} 25. bxa5 {[%clk 0:00:21]}  bxa5 {[%clk 0:00:30]} 26. a4 {[%clk 0:00:20]}  Qb8 {[%clk 0:00:24]} 27. Qxb8+ {[%clk 0:00:17]}  Nxb8 {[%clk 0:00:25]} 28. Nd4 {[%clk 0:00:17]}  Nbd7 {[%clk 0:00:19]} 29. e4 {[%clk 0:00:10]}  Ba8 {[%clk 0:00:17]} 30. Nb3 {[%clk 0:00:05]}  Nb6 {[%clk 0:00:14]} 31. Nc5 {[%clk 0:00:04]}  Bc6 {[%clk 0:00:11]} 32. e5 {[%clk 0:00:04]}  Bxg2 {[%clk 0:00:10]} 33. Kxg2 {[%clk 0:00:04]}  Nfd7 {[%clk 0:00:08]} 34. Nxd7 {[%clk 0:00:03]}  Nxd7 {[%clk 0:00:09]} 35. Nc4 {[%clk 0:00:04]}  Nc5 {[%clk 0:00:09]} 36. Nxa5 {[%clk 0:00:04]}  Nxa4 {[%clk 0:00:09]} 37. f4 {[%clk 0:00:05]}  Nc5 {[%clk 0:00:10]} 38. Nc6 {[%clk 0:00:05]}  Kf8 {[%clk 0:00:10]} 39. Kf3 {[%clk 0:00:06]}  Ke8 {[%clk 0:00:10]} 40. g4 {[%clk 0:00:06]}  Kd7 {[%clk 0:00:10]} 1/2-1/2


[Site "https://www.chess.com"]

[Event "Titled Tuesday Blitz March 15 Early 2022"]
[White "Maltsevskaya, Aleksandra"]
[Black "Samunenkov, Ihor"]
[WhiteFideId "24174041"]
[BlackFideId "14187086"]
[WhiteElo "2241"]
[BlackElo "2409"]
[Result "0-1"]
[Round "09"]
[TimeControl "180+1"]
[Date "2022.03.15"]
[WhiteClock "0:00:02"]
[BlackClock "0:00:06"]

1. e4 {[%clk 0:03:00]}  c6 {[%clk 0:02:59]} 2. d4 {[%clk 0:02:57]}  d5 {[%clk 0:02:59]} 3. e5 {[%clk 0:02:57]}  c5 {[%clk 0:02:59]} 4. Nf3 {[%clk 0:02:56]}  cxd4 {[%clk 0:02:58]} 5. Nxd4 {[%clk 0:02:57]}  Nc6 {[%clk 0:02:58]} 6. Nxc6 {[%clk 0:02:49]}  bxc6 {[%clk 0:02:59]} 7. g3 {[%clk 0:02:44]}  e6 {[%clk 0:02:45]} 8. Nd2 {[%clk 0:02:41]}  Bc5 {[%clk 0:02:40]} 9. Nf3 {[%clk 0:02:40]}  Ne7 {[%clk 0:02:37]} 10. Bd3 {[%clk 0:02:37]}  a5 {[%clk 0:02:27]} 11. O-O {[%clk 0:02:36]}  Ba6 {[%clk 0:02:19]} 12. Kg2 {[%clk 0:02:35]}  Bxd3 {[%clk 0:02:16]} 13. Qxd3 {[%clk 0:02:36]}  Qb6 {[%clk 0:02:14]} 14. b3 {[%clk 0:02:36]}  Qa6 {[%clk 0:01:58]} 15. c4 {[%clk 0:02:35]}  Rd8 {[%clk 0:01:54]} 16. Bg5 {[%clk 0:02:19]}  h6 {[%clk 0:01:50]} 17. Bxe7 {[%clk 0:02:17]}  Bxe7 {[%clk 0:01:44]} 18. Rac1 {[%clk 0:02:16]}  O-O {[%clk 0:01:41]} 19. Qc2 {[%clk 0:02:12]}  a4 {[%clk 0:01:38]} 20. Rfd1 {[%clk 0:02:11]}  axb3 {[%clk 0:01:31]} 21. axb3 {[%clk 0:02:12]}  Rb8 {[%clk 0:01:31]} 22. h4 {[%clk 0:02:12]}  Qa3 {[%clk 0:01:14]} 23. Rd3 {[%clk 0:02:10]}  Rb7 {[%clk 0:00:56]} 24. Nd4 {[%clk 0:02:06]}  Qa6 {[%clk 0:00:47]} 25. Rdd1 {[%clk 0:01:53]}  Qb6 {[%clk 0:00:46]} 26. c5 {[%clk 0:01:35]}  Qc7 {[%clk 0:00:43]} 27. f4 {[%clk 0:01:33]}  Ra8 {[%clk 0:00:41]} 28. Qe2 {[%clk 0:01:30]}  Ra5 {[%clk 0:00:36]} 29. f5 {[%clk 0:01:26]}  Bxc5 {[%clk 0:00:29]} 30. fxe6 {[%clk 0:01:18]}  Bxd4 {[%clk 0:00:29]} 31. exf7+ {[%clk 0:01:18]}  Qxf7 {[%clk 0:00:30]} 32. Rxd4 {[%clk 0:01:18]}  Qe6 {[%clk 0:00:09]} 33. Rf4 {[%clk 0:01:07]}  d4 {[%clk 0:00:09]} 34. Rxd4 {[%clk 0:00:59]}  Rxe5 {[%clk 0:00:09]} 35. Rd8+ {[%clk 0:00:58]}  Kh7 {[%clk 0:00:09]} 36. Qd3+ {[%clk 0:00:59]}  Qf5 {[%clk 0:00:09]} 37. Qc4 {[%clk 0:00:42]}  Qe6 {[%clk 0:00:05]} 38. Qc2+ {[%clk 0:00:17]}  Qf5 {[%clk 0:00:05]} 39. Qxf5+ {[%clk 0:00:09]}  Rxf5 {[%clk 0:00:05]} 40. Rxc6 {[%clk 0:00:10]}  Rxb3 {[%clk 0:00:05]} 41. Rd7 {[%clk 0:00:09]}  Rff3 {[%clk 0:00:05]} 42. Rcc7 {[%clk 0:00:05]}  Rxg3+ {[%clk 0:00:05]} 43. Kf2 {[%clk 0:00:05]}  Rg4 {[%clk 0:00:05]} 44. h5 {[%clk 0:00:01]}  Rh3 {[%clk 0:00:05]} 45. Re7 {[%clk 0:00:01]}  Rxh5 {[%clk 0:00:05]} 46. Kf3 {[%clk 0:00:02]}  Rhg5 {[%clk 0:00:05]} 47. Rf7 {[%clk 0:00:02]}  Rg3+ {[%clk 0:00:05]} 48. Kf4 {[%clk 0:00:03]}  R5g4+ {[%clk 0:00:05]} 49. Kf5 {[%clk 0:00:03]}  Rg1 {[%clk 0:00:05]} 50. Ke5 {[%clk 0:00:03]}  R4g2 {[%clk 0:00:05]} 51. Ke4 {[%clk 0:00:02]}  Re1+ {[%clk 0:00:05]} 52. Kf3 {[%clk 0:00:03]}  Rg5 {[%clk 0:00:05]} 53. Kf2 {[%clk 0:00:02]}  Ree5 {[%clk 0:00:06]} 54. Rfd7 {[%clk 0:00:02]}  Ref5+ {[%clk 0:00:06]} 55. Ke3 {[%clk 0:00:02]}  h5 {[%clk 0:00:05]} 56. Ke4 {[%clk 0:00:03]}  Rf6 {[%clk 0:00:05]} 57. Re7 {[%clk 0:00:02]}  Kh6 {[%clk 0:00:05]} 58. Rc8 {[%clk 0:00:01]}  Rg1 {[%clk 0:00:05]} 59. Rh8+ {[%clk 0:00:01]}  Kg6 {[%clk 0:00:05]} 60. Rg8 {[%clk 0:00:02]}  Re1+ {[%clk 0:00:05]} 61. Kd5 {[%clk 0:00:02]}  Rxe7 {[%clk 0:00:06]} 0-1


[Site "https://www.chess.com"]

[Event "Titled Tuesday Blitz March 15 Early 2022"]
[White "Moroni, Luca Jr"]
[Black "Csonka, Balazs"]
[WhiteFideId "865834"]
[BlackFideId "742910"]
[WhiteElo "2573"]
[BlackElo "2404"]
[Result "0-1"]
[Round "09"]
[TimeControl "180+1"]
[Date "2022.03.15"]
[WhiteClock "0:01:39"]
[BlackClock "0:00:09"]

1. e4 {[%clk 0:02:59]}  e6 {[%clk 0:02:57]} 2. d4 {[%clk 0:02:55]}  d5 {[%clk 0:02:57]} 3. Nc3 {[%clk 0:02:55]}  Nf6 {[%clk 0:02:56]} 4. exd5 {[%clk 0:02:54]}  exd5 {[%clk 0:02:56]} 5. Bd3 {[%clk 0:02:55]}  Be7 {[%clk 0:02:50]} 6. Nge2 {[%clk 0:02:56]}  O-O {[%clk 0:02:50]} 7. Bg5 {[%clk 0:02:56]}  c6 {[%clk 0:02:49]} 8. Qd2 {[%clk 0:02:56]}  Nbd7 {[%clk 0:02:47]} 9. O-O-O {[%clk 0:02:56]}  b5 {[%clk 0:02:43]} 10. Rde1 {[%clk 0:02:56]}  Nb6 {[%clk 0:02:37]} 11. Ng3 {[%clk 0:02:54]}  a5 {[%clk 0:02:30]} 12. Qf4 {[%clk 0:02:52]}  Ra7 {[%clk 0:01:38]} 13. Qh4 {[%clk 0:02:50]}  h6 {[%clk 0:01:24]} 14. Bxh6 {[%clk 0:02:49]}  Ne4 {[%clk 0:01:19]} 15. Qh5 {[%clk 0:02:49]}  gxh6 {[%clk 0:01:11]} 16. Ncxe4 {[%clk 0:02:48]}  dxe4 {[%clk 0:01:04]} 17. Rxe4 {[%clk 0:02:49]}  Bf6 {[%clk 0:00:40]} 18. Rhe1 {[%clk 0:02:43]}  Bg7 {[%clk 0:00:36]} 19. h4 {[%clk 0:02:35]}  Nd5 {[%clk 0:00:31]} 20. c3 {[%clk 0:02:32]}  Nf6 {[%clk 0:00:27]} 21. Qf3 {[%clk 0:02:27]}  Nxe4 {[%clk 0:00:27]} 22. Qxe4 {[%clk 0:02:27]}  f5 {[%clk 0:00:25]} 23. Qxc6 {[%clk 0:02:25]}  Re7 {[%clk 0:00:18]} 24. Rd1 {[%clk 0:02:15]}  b4 {[%clk 0:00:18]} 25. Nh5 {[%clk 0:01:52]}  bxc3 {[%clk 0:00:15]} 26. bxc3 {[%clk 0:01:53]}  Rc7 {[%clk 0:00:15]} 27. Bc4+ {[%clk 0:01:49]}  Kh8 {[%clk 0:00:14]} 28. Qg6 {[%clk 0:01:49]}  Qe7 {[%clk 0:00:08]} 29. Qa6 {[%clk 0:01:43]}  Bxa6 {[%clk 0:00:07]} 30. Nf4 {[%clk 0:01:42]}  Bxc4 {[%clk 0:00:06]} 31. Ng6+ {[%clk 0:01:42]}  Kh7 {[%clk 0:00:07]} 32. Nxe7 {[%clk 0:01:42]}  Rxe7 {[%clk 0:00:08]} 33. Rd2 {[%clk 0:01:42]}  Rc8 {[%clk 0:00:08]} 34. Rc2 {[%clk 0:01:41]}  Rec7 {[%clk 0:00:09]} 35. f4 {[%clk 0:01:39]}  Bd5 {[%clk 0:00:09]} 36. Kd2 {[%clk 0:01:39]}  Bxd4 {[%clk 0:00:09]} 0-1


[Site "https://www.chess.com"]

[Event "Titled Tuesday Blitz March 15 Early 2022"]
[White "Prohorov, Olexandr"]
[Black "Spitzl, Vinzent"]
[WhiteFideId "14105578"]
[BlackFideId "12901253"]
[WhiteElo "1993"]
[BlackElo "2160"]
[Result "0-1"]
[Round "09"]
[TimeControl "180+1"]
[Date "2022.03.15"]
[WhiteClock "0:00:17"]
[BlackClock "0:00:08"]

1. Nf3 {[%clk 0:02:58]}  Nf6 {[%clk 0:02:55]} 2. c4 {[%clk 0:02:57]}  e6 {[%clk 0:02:54]} 3. Nc3 {[%clk 0:02:58]}  d5 {[%clk 0:02:55]} 4. e3 {[%clk 0:02:58]}  Be7 {[%clk 0:02:54]} 5. b3 {[%clk 0:02:54]}  b6 {[%clk 0:02:54]} 6. Bb2 {[%clk 0:02:54]}  Bb7 {[%clk 0:02:54]} 7. d4 {[%clk 0:02:53]}  O-O {[%clk 0:02:54]} 8. Bd3 {[%clk 0:02:54]}  Nbd7 {[%clk 0:02:54]} 9. O-O {[%clk 0:02:54]}  c5 {[%clk 0:02:54]} 10. Qe2 {[%clk 0:02:54]}  Rc8 {[%clk 0:02:50]} 11. Rfd1 {[%clk 0:02:54]}  Qc7 {[%clk 0:02:48]} 12. Rac1 {[%clk 0:02:53]}  Qb8 {[%clk 0:02:48]} 13. cxd5 {[%clk 0:02:52]}  Nxd5 {[%clk 0:02:45]} 14. Bb1 {[%clk 0:02:49]}  N7f6 {[%clk 0:02:39]} 15. Ne5 {[%clk 0:02:38]}  Nxc3 {[%clk 0:02:26]} 16. Bxc3 {[%clk 0:02:38]}  cxd4 {[%clk 0:02:26]} 17. Bxd4 {[%clk 0:02:33]}  Rxc1 {[%clk 0:02:13]} 18. Rxc1 {[%clk 0:02:33]}  Rc8 {[%clk 0:02:14]} 19. Rxc8+ {[%clk 0:02:20]}  Qxc8 {[%clk 0:02:15]} 20. Qc2 {[%clk 0:02:21]}  Qxc2 {[%clk 0:02:06]} 21. Bxc2 {[%clk 0:02:22]}  Nd5 {[%clk 0:01:59]} 22. Kf1 {[%clk 0:02:10]}  f6 {[%clk 0:01:59]} 23. Nc4 {[%clk 0:02:03]}  Ba6 {[%clk 0:01:45]} 24. Ke1 {[%clk 0:02:01]}  Bxc4 {[%clk 0:01:33]} 25. bxc4 {[%clk 0:02:01]}  Nb4 {[%clk 0:01:30]} 26. Bb3 {[%clk 0:01:51]}  Bc5 {[%clk 0:01:30]} 27. Kd2 {[%clk 0:01:49]}  Kf7 {[%clk 0:01:28]} 28. Kc3 {[%clk 0:01:37]}  e5 {[%clk 0:01:16]} 29. Bxc5 {[%clk 0:01:37]}  bxc5 {[%clk 0:01:16]} 30. Ba4 {[%clk 0:01:35]}  Nxa2+ {[%clk 0:01:10]} 31. Kb3 {[%clk 0:01:00]}  Nb4 {[%clk 0:01:10]} 32. Bd7 {[%clk 0:00:58]}  Ke7 {[%clk 0:01:02]} 33. Bf5 {[%clk 0:00:58]}  g6 {[%clk 0:01:01]} 34. Be4 {[%clk 0:00:55]}  f5 {[%clk 0:00:56]} 35. Bb1 {[%clk 0:00:55]}  Kd6 {[%clk 0:00:50]} 36. Ka4 {[%clk 0:00:55]}  Kc6 {[%clk 0:00:29]} 37. Ka5 {[%clk 0:00:55]}  e4 {[%clk 0:00:28]} 38. f3 {[%clk 0:00:51]}  Nd3 {[%clk 0:00:14]} 39. fxe4 {[%clk 0:00:43]}  fxe4 {[%clk 0:00:15]} 40. Ka6 {[%clk 0:00:43]}  Kd6 {[%clk 0:00:13]} 41. Kxa7 {[%clk 0:00:43]}  Nb2 {[%clk 0:00:13]} 42. Bxe4 {[%clk 0:00:36]}  Nxc4 {[%clk 0:00:13]} 43. Ka6 {[%clk 0:00:22]}  Ke5 {[%clk 0:00:13]} 44. Bd3 {[%clk 0:00:16]}  Nxe3 {[%clk 0:00:13]} 45. Kb5 {[%clk 0:00:17]}  Kd4 {[%clk 0:00:13]} 46. Be2 {[%clk 0:00:14]}  Nxg2 {[%clk 0:00:10]} 47. Bf3 {[%clk 0:00:13]}  Ne3 {[%clk 0:00:10]} 48. Be2 {[%clk 0:00:13]}  c4 {[%clk 0:00:08]} 49. Kb4 {[%clk 0:00:13]}  c3 {[%clk 0:00:07]} 50. h4 {[%clk 0:00:13]}  h6 {[%clk 0:00:06]} 51. Kb3 {[%clk 0:00:13]}  g5 {[%clk 0:00:06]} 52. hxg5 {[%clk 0:00:13]}  hxg5 {[%clk 0:00:07]} 53. Ka2 {[%clk 0:00:12]}  g4 {[%clk 0:00:07]} 54. Kb1 {[%clk 0:00:13]}  g3 {[%clk 0:00:07]} 55. Bf3 {[%clk 0:00:14]}  g2 {[%clk 0:00:08]} 56. Bxg2 {[%clk 0:00:14]}  Nxg2 {[%clk 0:00:08]} 57. Kc2 {[%clk 0:00:15]}  Kc4 {[%clk 0:00:08]} 58. Kc1 {[%clk 0:00:16]}  Kd3 {[%clk 0:00:08]} 59. Kd1 {[%clk 0:00:16]}  Ne3+ {[%clk 0:00:08]} 60. Kc1 {[%clk 0:00:17]}  c2 {[%clk 0:00:08]} 61. Kb2 {[%clk 0:00:17]}  Kd2 {[%clk 0:00:08]} 0-1


[Site "https://www.chess.com"]

[Event "Titled Tuesday Blitz March 15 Early 2022"]
[White "Riehle, Marco"]
[Black "Szpar, Milosz"]
[WhiteFideId "12904392"]
[BlackFideId "1184989"]
[WhiteElo "2462"]
[BlackElo "2447"]
[Result "1-0"]
[Round "09"]
[TimeControl "180+1"]
[Date "2022.03.15"]
[WhiteClock "0:00:22"]
[BlackClock "0:00:20"]

1. e4 {[%clk 0:02:56]}  c5 {[%clk 0:03:00]} 2. a3 {[%clk 0:02:56]}  d6 {[%clk 0:02:54]} 3. b4 {[%clk 0:02:55]}  Nf6 {[%clk 0:02:54]} 4. Nc3 {[%clk 0:02:54]}  Nc6 {[%clk 0:02:51]} 5. Nf3 {[%clk 0:02:47]}  Bg4 {[%clk 0:02:51]} 6. Be2 {[%clk 0:02:28]}  e6 {[%clk 0:02:51]} 7. O-O {[%clk 0:02:22]}  Be7 {[%clk 0:02:51]} 8. b5 {[%clk 0:02:21]}  Bxf3 {[%clk 0:02:49]} 9. Bxf3 {[%clk 0:02:21]}  Nd4 {[%clk 0:02:49]} 10. Bb2 {[%clk 0:02:20]}  O-O {[%clk 0:02:49]} 11. d3 {[%clk 0:02:19]}  a6 {[%clk 0:02:49]} 12. a4 {[%clk 0:02:16]}  axb5 {[%clk 0:02:47]} 13. Nxb5 {[%clk 0:02:15]}  Nxf3+ {[%clk 0:02:44]} 14. Qxf3 {[%clk 0:02:14]}  d5 {[%clk 0:02:35]} 15. Rfe1 {[%clk 0:02:00]}  Kh8 {[%clk 0:02:33]} 16. h3 {[%clk 0:01:56]}  dxe4 {[%clk 0:02:32]} 17. dxe4 {[%clk 0:01:56]}  Qd7 {[%clk 0:02:33]} 18. c4 {[%clk 0:01:49]}  Qc6 {[%clk 0:02:32]} 19. Red1 {[%clk 0:01:39]}  Rfd8 {[%clk 0:02:18]} 20. Rxd8+ {[%clk 0:01:31]}  Rxd8 {[%clk 0:02:18]} 21. e5 {[%clk 0:01:28]}  Qxf3 {[%clk 0:02:13]} 22. gxf3 {[%clk 0:01:29]}  Nd7 {[%clk 0:02:14]} 23. a5 {[%clk 0:01:26]}  Nb8 {[%clk 0:02:14]} 24. Bc3 {[%clk 0:01:22]}  Kg8 {[%clk 0:02:11]} 25. Kf1 {[%clk 0:01:22]}  Kf8 {[%clk 0:02:11]} 26. Ke2 {[%clk 0:01:22]}  Ke8 {[%clk 0:02:11]} 27. Rb1 {[%clk 0:01:21]}  Kd7 {[%clk 0:02:10]} 28. Na7 {[%clk 0:01:20]}  Kc7 {[%clk 0:02:02]} 29. a6 {[%clk 0:01:18]}  b6 {[%clk 0:01:49]} 30. Nb5+ {[%clk 0:01:17]}  Kc6 {[%clk 0:01:49]} 31. Na7+ {[%clk 0:01:13]}  Kc7 {[%clk 0:01:49]} 32. Nb5+ {[%clk 0:01:05]}  Kc6 {[%clk 0:01:48]} 33. a7 {[%clk 0:01:02]}  Nd7 {[%clk 0:01:47]} 34. Rg1 {[%clk 0:00:58]}  g6 {[%clk 0:01:47]} 35. Rd1 {[%clk 0:00:58]}  Ra8 {[%clk 0:01:45]} 36. f4 {[%clk 0:00:54]}  h5 {[%clk 0:01:45]} 37. f3 {[%clk 0:00:54]}  Bf8 {[%clk 0:01:37]} 38. Be1 {[%clk 0:00:52]}  Be7 {[%clk 0:01:36]} 39. Bh4 {[%clk 0:00:52]}  Bf8 {[%clk 0:01:33]} 40. Bf6 {[%clk 0:00:52]}  Rc8 {[%clk 0:01:22]} 41. Kf2 {[%clk 0:00:45]}  Ra8 {[%clk 0:01:22]} 42. Kg3 {[%clk 0:00:45]}  Rc8 {[%clk 0:01:21]} 43. Kh4 {[%clk 0:00:44]}  Ra8 {[%clk 0:01:21]} 44. Kg5 {[%clk 0:00:42]}  Rc8 {[%clk 0:01:21]} 45. Kh4 {[%clk 0:00:42]}  Ra8 {[%clk 0:01:20]} 46. Kg3 {[%clk 0:00:43]}  Rc8 {[%clk 0:01:21]} 47. Bg5 {[%clk 0:00:43]}  Ra8 {[%clk 0:01:18]} 48. Kf2 {[%clk 0:00:43]}  Rc8 {[%clk 0:01:18]} 49. Ke3 {[%clk 0:00:43]}  Ra8 {[%clk 0:01:18]} 50. Bh4 {[%clk 0:00:41]}  Rc8 {[%clk 0:01:18]} 51. Bf6 {[%clk 0:00:38]}  Ra8 {[%clk 0:01:18]} 52. Ke4 {[%clk 0:00:38]}  Re8 {[%clk 0:01:11]} 53. Bh4 {[%clk 0:00:38]}  Rc8 {[%clk 0:01:06]} 54. Bf2 {[%clk 0:00:38]}  Be7 {[%clk 0:01:04]} 55. Be3 {[%clk 0:00:37]}  Re8 {[%clk 0:00:56]} 56. Ra1 {[%clk 0:00:36]}  f5+ {[%clk 0:00:50]} 57. Kd3 {[%clk 0:00:33]}  Ra8 {[%clk 0:00:49]} 58. Ke2 {[%clk 0:00:32]}  Nf8 {[%clk 0:00:48]} 59. Rd1 {[%clk 0:00:31]}  Nd7 {[%clk 0:00:47]} 60. Bf2 {[%clk 0:00:31]}  g5 {[%clk 0:00:44]} 61. Bg3 {[%clk 0:00:29]}  g4 {[%clk 0:00:41]} 62. fxg4 {[%clk 0:00:28]}  hxg4 {[%clk 0:00:41]} 63. hxg4 {[%clk 0:00:29]}  fxg4 {[%clk 0:00:40]} 64. Rh1 {[%clk 0:00:28]}  Nf8 {[%clk 0:00:33]} 65. Rh8 {[%clk 0:00:28]}  Rd8 {[%clk 0:00:26]} 66. Rg8 {[%clk 0:00:27]}  Kb7 {[%clk 0:00:25]} 67. Rg7 {[%clk 0:00:25]}  Rd7 {[%clk 0:00:25]} 68. Rxg4 {[%clk 0:00:23]}  Ka8 {[%clk 0:00:20]} 69. Rg8 {[%clk 0:00:23]}  Kb7 {[%clk 0:00:20]} 70. Bf2 {[%clk 0:00:22]}  Ka8 {[%clk 0:00:20]} 71. Bh4 {[%clk 0:00:22]} 1-0


[Site "https://www.chess.com"]

[Event "Titled Tuesday Blitz March 15 Early 2022"]
[White "Rosen, Eric"]
[Black "Santos Ruiz, Miguel"]
[WhiteFideId "2032562"]
[BlackFideId "22291482"]
[WhiteElo "2362"]
[BlackElo "2486"]
[Result "1-0"]
[Round "09"]
[TimeControl "180+1"]
[Date "2022.03.15"]
[WhiteClock "0:00:10"]
[BlackClock "0:00:08"]

1. d4 {[%clk 0:03:00]}  Nf6 {[%clk 0:02:59]} 2. Bf4 {[%clk 0:02:59]}  c5 {[%clk 0:02:58]} 3. e3 {[%clk 0:02:59]}  Nd5 {[%clk 0:02:57]} 4. Bg3 {[%clk 0:02:57]}  Qb6 {[%clk 0:02:56]} 5. b3 {[%clk 0:02:57]}  cxd4 {[%clk 0:02:55]} 6. exd4 {[%clk 0:02:58]}  g6 {[%clk 0:02:55]} 7. c3 {[%clk 0:02:57]}  Bg7 {[%clk 0:02:55]} 8. Nf3 {[%clk 0:02:56]}  O-O {[%clk 0:02:55]} 9. Be2 {[%clk 0:02:55]}  d6 {[%clk 0:02:49]} 10. O-O {[%clk 0:02:56]}  Nc6 {[%clk 0:02:49]} 11. Re1 {[%clk 0:02:50]}  Bd7 {[%clk 0:02:39]} 12. Bc4 {[%clk 0:02:41]}  Nf6 {[%clk 0:02:18]} 13. Nbd2 {[%clk 0:02:41]}  d5 {[%clk 0:02:09]} 14. Bd3 {[%clk 0:02:39]}  e6 {[%clk 0:02:06]} 15. Bd6 {[%clk 0:02:35]}  Rfc8 {[%clk 0:02:02]} 16. Bf4 {[%clk 0:02:14]}  Nh5 {[%clk 0:01:41]} 17. Be3 {[%clk 0:02:12]}  Qc7 {[%clk 0:01:32]} 18. Rc1 {[%clk 0:01:55]}  Be8 {[%clk 0:01:14]} 19. Bb1 {[%clk 0:01:54]}  b5 {[%clk 0:01:12]} 20. Nf1 {[%clk 0:01:53]}  a5 {[%clk 0:01:11]} 21. Qd2 {[%clk 0:01:53]}  a4 {[%clk 0:01:09]} 22. Bd3 {[%clk 0:01:46]}  axb3 {[%clk 0:01:01]} 23. axb3 {[%clk 0:01:46]}  Qb6 {[%clk 0:01:01]} 24. b4 {[%clk 0:01:37]}  Nf6 {[%clk 0:00:51]} 25. Qe2 {[%clk 0:01:34]}  Rcb8 {[%clk 0:00:35]} 26. Bf4 {[%clk 0:01:33]}  Rb7 {[%clk 0:00:34]} 27. Ra1 {[%clk 0:01:34]}  Rxa1 {[%clk 0:00:32]} 28. Rxa1 {[%clk 0:01:33]}  Ra7 {[%clk 0:00:33]} 29. Qb2 {[%clk 0:01:34]}  Ne4 {[%clk 0:00:31]} 30. N1d2 {[%clk 0:01:26]}  Nxd2 {[%clk 0:00:30]} 31. Nxd2 {[%clk 0:01:26]}  e5 {[%clk 0:00:29]} 32. dxe5 {[%clk 0:01:22]}  Nxe5 {[%clk 0:00:29]} 33. Re1 {[%clk 0:01:05]}  Re7 {[%clk 0:00:23]} 34. Bf1 {[%clk 0:00:48]}  Bf6 {[%clk 0:00:12]} 35. h3 {[%clk 0:00:46]}  Ng4 {[%clk 0:00:11]} 36. Nc4 {[%clk 0:00:23]}  dxc4 {[%clk 0:00:04]} 37. Rxe7 {[%clk 0:00:23]}  Bxe7 {[%clk 0:00:04]} 38. hxg4 {[%clk 0:00:22]}  Bf6 {[%clk 0:00:05]} 39. Qd2 {[%clk 0:00:18]}  Qe6 {[%clk 0:00:03]} 40. g5 {[%clk 0:00:15]}  Bg7 {[%clk 0:00:03]} 41. Be3 {[%clk 0:00:16]}  h5 {[%clk 0:00:02]} 42. Bd4 {[%clk 0:00:15]}  Bc6 {[%clk 0:00:01]} 43. Bxg7 {[%clk 0:00:15]}  Kxg7 {[%clk 0:00:02]} 44. Qd4+ {[%clk 0:00:15]}  Kf8 {[%clk 0:00:03]} 45. f3 {[%clk 0:00:11]}  Qd5 {[%clk 0:00:03]} 46. Qxd5 {[%clk 0:00:10]}  Bxd5 {[%clk 0:00:04]} 47. Kf2 {[%clk 0:00:11]}  Ke7 {[%clk 0:00:05]} 48. Ke3 {[%clk 0:00:11]}  Kd6 {[%clk 0:00:06]} 49. g3 {[%clk 0:00:07]}  Ke5 {[%clk 0:00:05]} 50. f4+ {[%clk 0:00:08]}  Kd6 {[%clk 0:00:04]} 51. Kd4 {[%clk 0:00:08]}  Bc6 {[%clk 0:00:05]} 52. Be2 {[%clk 0:00:08]}  Bd7 {[%clk 0:00:04]} 53. Bf3 {[%clk 0:00:08]}  Be8 {[%clk 0:00:04]} 54. Bd5 {[%clk 0:00:07]}  Bd7 {[%clk 0:00:05]} 55. Bxf7 {[%clk 0:00:07]}  Bf5 {[%clk 0:00:05]} 56. Bd5 {[%clk 0:00:06]}  Bd7 {[%clk 0:00:04]} 57. Be4 {[%clk 0:00:07]}  Be8 {[%clk 0:00:05]} 58. Bc2 {[%clk 0:00:07]}  Bf7 {[%clk 0:00:05]} 59. Be4 {[%clk 0:00:07]}  Be8 {[%clk 0:00:06]} 60. Bf3 {[%clk 0:00:08]}  Bf7 {[%clk 0:00:06]} 61. Be2 {[%clk 0:00:07]}  Be8 {[%clk 0:00:07]} 62. Bf1 {[%clk 0:00:08]}  Bf7 {[%clk 0:00:07]} 63. Bg2 {[%clk 0:00:09]}  Be8 {[%clk 0:00:08]} 64. Bd5 {[%clk 0:00:09]}  Bf7 {[%clk 0:00:08]} 65. Bxf7 {[%clk 0:00:10]} 1-0


[Site "https://www.chess.com"]